bitfinex/quotes_BTCUSD_20241020
["timestamp","ask_amount","ask_price","bid_price","bid_amount"]
[1729449260802,0.77407856,68660.0,68659.0,6.86276651]
[1729449261450,0.77407856,68660.0,68659.0,6.86276658]
[1729449263426,0.77634462,68660.0,68659.0,6.86276658]
[1729449264737,0.77635111,68660.0,68659.0,6.86276658]
[1729449264953,0.77635111,68660.0,68659.0,6.86276661]
[1729449268280,0.62739196,68660.0,68659.0,6.86276661]
[1729449268550,0.5825426,68660.0,68659.0,6.86276644]
[1729449268773,0.536564,68660.0,68659.0,6.88475004]
[1729449272000,0.536564,68660.0,68659.0,6.8847436]
[1729449279311,0.536564,68660.0,68659.0,6.88474089]
[1729449282584,0.536564,68660.0,68659.0,6.88474023]
[1729449287061,0.245273,68660.0,68659.0,6.88474023]
[1729449289642,0.245273,68660.0,68659.0,6.8847392]
[1729449294495,0.245273,68660.0,68659.0,6.8897392]
[1729449296571,0.245273,68660.0,68659.0,6.87887222]
[1729449296796,0.245273,68660.0,68659.0,6.88974118]
[1729449301390,0.245273,68660.0,68659.0,6.873349]
[1729449301607,0.245273,68660.0,68659.0,6.88974378]
[1729449302772,0.000828,68660.0,68659.0,6.89968222]
[1729449303017,0.146473,68660.0,68659.0,6.87873663]
[1729449303224,0.146473,68660.0,68659.0,6.88881064]
[1729449303437,0.146473,68660.0,68659.0,6.89968194]
[1729449305124,0.000828,68660.0,68659.0,6.89968194]
[1729449305374,0.000828,68660.0,68659.0,6.90593756]
[1729449305589,0.000828,68660.0,68659.0,6.89968194]
[1729449309218,0.146473,68660.0,68659.0,6.89968194]
[1729449309650,0.000828,68660.0,68659.0,6.89968194]
[1729449310113,0.000828,68660.0,68659.0,6.90593559]
[1729449310553,0.000828,68660.0,68659.0,6.89968194]
[1729449310980,0.000828,68660.0,68659.0,6.90593568]
[1729449311412,0.000828,68660.0,68659.0,6.89968194]
[1729449313920,0.000828,68660.0,68659.0,6.89768194]
[1729449314193,0.000828,68660.0,68659.0,6.89968194]
[1729449317034,0.000828,68660.0,68659.0,6.88881064]
[1729449317268,0.000828,68660.0,68659.0,6.89967984]
[1729449320684,0.000828,68660.0,68659.0,6.89968068]
[1729449324145,0.000828,68660.0,68659.0,6.89968063]
[1729449327691,0.146473,68660.0,68659.0,6.89968063]
[1729449328229,0.000828,68660.0,68659.0,6.89968063]
[1729449331031,0.000828,68660.0,68659.0,6.87873539]
[1729449331265,0.000828,68660.0,68659.0,6.89968113]
[1729449333167,0.000828,68660.0,68659.0,6.89768113]
[1729449333404,0.146473,68660.0,68659.0,6.89768113]
[1729449333635,0.146473,68660.0,68659.0,6.79418113]
[1729449333866,0.146473,68660.0,68659.0,6.80043728]
[1729449334098,0.146473,68660.0,68659.0,6.79743728]
[1729449334781,0.146473,68660.0,68659.0,6.79743827]
[1729449335028,0.146473,68660.0,68659.0,6.79744051]
[1729449335738,0.146473,68660.0,68659.0,6.79744027]
[1729449336475,0.146473,68660.0,68659.0,6.79050183]
[1729449336741,0.146473,68660.0,68659.0,6.78424576]
[1729449336742,0.31843215,68660.0,68659.0,6.78424576]
[1729449336979,0.51233215,68660.0,68659.0,6.78424576]
[1729449337218,0.51233215,68660.0,68659.0,6.77337232]
[1729449337453,0.51699991,68660.0,68659.0,6.77337232]
[1729449338443,0.51699991,68660.0,68659.0,6.76426551]
[1729449339806,0.51233215,68660.0,68659.0,6.76426551]
[1729449340016,0.5169967,68660.0,68659.0,6.76426551]
[1729449342026,0.5169967,68660.0,68659.0,6.76426642]
[1729449342284,0.51233215,68660.0,68659.0,6.76426642]
[1729449342716,0.51699852,68660.0,68659.0,6.76426642]
[1729449345688,0.42309852,68660.0,68659.0,6.76426642]
[1729449348926,0.42309852,68660.0,68659.0,6.76920486]
[1729449349414,0.41843215,68660.0,68659.0,6.7692047]
[1729449349638,0.41843215,68660.0,68659.0,6.76426626]
[1729449350129,0.41843215,68660.0,68659.0,6.76626626]
[1729449350365,0.41843215,68660.0,68659.0,6.7712047]
[1729449351033,0.41843215,68660.0,68659.0,6.76626626]
[1729449351256,0.41843215,68660.0,68659.0,6.7712047]
[1729449351505,0.41843215,68660.0,68659.0,6.76626626]
[1729449354211,0.41843215,68660.0,68659.0,6.7712047]
[1729449356221,0.42309563,68660.0,68659.0,6.7712047]
[1729449356677,0.42309563,68660.0,68659.0,6.7593651]
[1729449356912,0.42309563,68660.0,68659.0,6.77120472]
[1729449360723,0.42309563,68660.0,68659.0,6.78031203]
[1729449360932,0.42309563,68660.0,68659.0,6.77120472]
[1729449361147,0.42309563,68660.0,68659.0,6.78031203]
[1729449362036,0.42309563,68660.0,68659.0,6.78031205]
[1729449362468,0.42309563,68660.0,68659.0,6.7593651]
[1729449362685,0.42309563,68660.0,68659.0,6.78031195]
[1729449365468,0.42309563,68660.0,68659.0,6.7593651]
[1729449365873,0.44589404,68660.0,68659.0,6.7593651]
[1729449367774,0.44589404,68660.0,68659.0,6.78031195]
[1729449368002,0.44589404,68660.0,68659.0,6.7593651]
[1729449368389,0.44589404,68660.0,68659.0,6.76665095]
[1729449368597,0.44123056,68660.0,68659.0,6.76665095]
[1729449369048,0.44123056,68660.0,68659.0,6.77120461]
[1729449369250,0.44123056,68660.0,68659.0,6.78031193]
[1729449370743,0.44123056,68660.0,68659.0,6.79119488]
[1729449371167,0.44123056,68660.0,68659.0,6.78625644]
[1729449371636,0.44123056,68660.0,68659.0,6.96469488]
[1729449372285,0.41843215,68660.0,68659.0,6.96469488]
[1729449372497,0.41843215,68660.0,68659.0,6.96469453]
[1729449372702,0.41843215,68660.0,68659.0,6.95381158]
[1729449373153,0.41843215,68660.0,68659.0,6.94887314]
[1729449373364,0.41843215,68660.0,68659.0,6.95381158]
[1729449374013,0.246473,68660.0,68659.0,6.95381158]
[1729449374693,0.246473,68660.0,68659.0,6.78031158]
[1729449375780,0.221861,68660.0,68659.0,6.78031158]
[1729449375989,0.221861,68660.0,68659.0,6.78031193]
[1729449379533,0.221861,68660.0,68659.0,6.78031207]
[1729449382912,0.221861,68660.0,68659.0,6.77537363]
[1729449383133,0.221861,68660.0,68659.0,6.78031209]
[1729449384660,0.222689,68660.0,68659.0,6.78031209]
[1729449392842,0.222689,68660.0,68659.0,6.77537365]
[1729449393074,0.222689,68660.0,68659.0,6.78031209]
[1729449395870,0.222689,68660.0,68659.0,6.77537365]
[1729449396117,0.222689,68660.0,68659.0,6.87391209]
[1729449397326,0.222689,68660.0,68659.0,6.87391194]
[1729449398951,0.222689,68660.0,68659.0,6.8689735]
[1729449399204,0.222689,68660.0,68659.0,6.87391194]
[1729449400802,0.222689,68660.0,68659.0,6.8689735]
[1729449401048,0.222689,68660.0,68659.0,6.87391194]
[1729449401572,0.222689,68660.0,68659.0,6.8689735]
[1729449401783,0.222689,68660.0,68659.0,6.87391194]
[1729449407439,0.222689,68660.0,68659.0,6.87191194]
[1729449407888,0.26639529,68660.0,68659.0,6.87191194]
[1729449408324,0.222689,68660.0,68659.0,6.87191194]
[1729449411286,0.222689,68660.0,68659.0,6.8509651]
[1729449411539,0.222689,68660.0,68659.0,6.87191226]
[1729449411734,0.222689,68660.0,68659.0,6.85825107]
[1729449411979,0.222689,68660.0,68659.0,6.87191226]
[1729449414337,0.222689,68660.0,68659.0,6.86697382]
[1729449414585,0.222689,68660.0,68659.0,6.87191226]
[1729449417171,0.26639452,68660.0,68659.0,6.87191226]
[1729449417617,0.222689,68660.0,68659.0,6.87191226]
[1729449418778,0.222689,68660.0,68659.0,6.87191227]
[1729449420343,0.26639452,68660.0,68659.0,6.87191227]
[1729449420569,0.26639452,68660.0,68659.0,6.86697383]
[1729449420788,0.222689,68660.0,68659.0,6.87191227]
[1729449421033,0.26639555,68660.0,68659.0,6.87191227]
[1729449421556,0.222689,68660.0,68659.0,6.87191227]
[1729449424769,0.222689,68660.0,68659.0,6.8509651]
[1729449424960,0.222689,68660.0,68659.0,6.89480423]
[1729449427863,0.26639555,68660.0,68659.0,6.89480423]
[1729449428089,0.222689,68660.0,68659.0,6.89480423]
[1729449428317,0.26639653,68660.0,68659.0,7.89480423]
[1729449429650,0.222689,68660.0,68659.0,7.89480423]
[1729449430812,0.26639653,68660.0,68659.0,7.89480423]
[1729449431910,0.26639653,68660.0,68659.0,7.8509651]
[1729449432118,0.26639653,68660.0,68659.0,7.89460006]
[1729449434065,0.26639653,68660.0,68659.0,7.9054839]
[1729449434484,0.26639673,68660.0,68659.0,7.9054839]
[1729449434695,0.26639673,68660.0,68659.0,7.89460006]
[1729449438528,0.26639673,68660.0,68659.0,6.89460006]
[1729449439389,0.26639638,68660.0,68659.0,6.89460006]
[1729449442520,0.26639638,68660.0,68659.0,6.89460179]
[1729449444151,0.2663961,68660.0,68659.0,6.89460179]
[1729449445485,0.2663961,68660.0,68659.0,6.89660179]
[1729449446159,0.2663961,68660.0,68659.0,6.89660118]
[1729449448846,0.1,68662.0,68660.0,0.7356039]
[1729449449073,0.14564,68662.0,68661.0,0.02666339]
[1729449449764,0.14564,68662.0,68661.0,0.02666308]
[1729449450468,0.14564,68662.0,68661.0,0.02466308]
[1729449452556,0.14564,68662.0,68661.0,0.02666308]
[1729449453476,0.14564,68662.0,68661.0,0.02466308]
[1729449453713,0.14564,68662.0,68661.0,0.02666308]
[1729449454394,0.14564,68662.0,68661.0,0.02466308]
[1729449455139,0.146468,68662.0,68661.0,0.02466308]
[1729449456583,0.146468,68662.0,68661.0,0.02666308]
[1729449456819,0.146468,68662.0,68661.0,0.0266789]
[1729449460245,0.146468,68662.0,68661.0,0.0246789]
[1729449460685,0.25688763,68662.0,68661.0,0.0246789]
[1729449460905,0.169468,68662.0,68661.0,0.0266789]
[1729449463171,0.169468,68662.0,68661.0,1.0266789]
[1729449463624,0.23503142,68662.0,68661.0,1.0266789]
[1729449464087,0.23503142,68662.0,68661.0,1.002]
[1729449464310,0.24869142,68662.0,68661.0,1.0266894]
[1729449465214,0.24869142,68662.0,68661.0,1.002]
[1729449465457,0.24869142,68662.0,68661.0,1.02668921]
[1729449468474,0.23503142,68662.0,68661.0,1.02668921]
[1729449469162,0.23503142,68662.0,68661.0,1.02468921]
[1729449469409,0.24869058,68662.0,68661.0,1.02468921]
[1729449469655,0.24869058,68662.0,68661.0,1.02668921]
[1729449471262,0.24869058,68662.0,68661.0,1.0]
[1729449471479,0.24869058,68662.0,68661.0,1.02670257]
[1729449472832,0.24868977,68662.0,68661.0,1.02670257]
[1729449474951,0.24868906,68662.0,68661.0,1.02670274]
[1729449476138,0.18312645,68662.0,68661.0,1.02670274]
[1729449480208,0.24868906,68662.0,68661.0,1.02670274]
[1729449480451,0.18312645,68662.0,68661.0,1.02670274]
[1729449480663,0.24868906,68662.0,68661.0,1.02670274]
[1729449481544,0.18312645,68662.0,68661.0,1.02670274]
[1729449484525,0.18312645,68662.0,68661.0,1.02670182]
[1729449486422,0.169468,68662.0,68661.0,1.02670182]
[1729449488086,0.23502624,68662.0,68661.0,1.02670182]
[1729449489551,0.23502624,68662.0,68661.0,1.002]
[1729449489764,0.169468,68662.0,68661.0,1.02672083]
[1729449490267,0.169468,68662.0,68661.0,1.04574004]
[1729449494791,0.23502562,68662.0,68661.0,1.04574004]
[1729449495036,0.169468,68662.0,68661.0,1.002]
[1729449495262,0.169468,68662.0,68661.0,1.04575212]
[1729449495483,0.23502562,68662.0,68661.0,1.04575212]
[1729449495727,0.169468,68662.0,68661.0,1.04575212]
[1729449497054,0.169468,68662.0,68661.0,1.02672897]
[1729449497319,0.23502562,68662.0,68661.0,1.02672897]
[1729449497547,0.169468,68662.0,68661.0,1.02672897]
[1729449497772,0.23502562,68662.0,68661.0,1.02672897]
[1729449498004,0.169468,68662.0,68661.0,1.02672897]
[1729449498466,0.23502685,68662.0,68661.0,1.02472897]
[1729449498939,0.23502683,68662.0,68661.0,1.02472897]
[1729449500345,0.169468,68662.0,68661.0,1.02472897]
[1729449500785,0.23502651,68662.0,68661.0,1.02472897]
[1729449501005,0.169468,68662.0,68661.0,1.02472897]
[1729449501240,0.23502682,68662.0,68661.0,1.02472897]
[1729449502656,0.23502682,68662.0,68661.0,1.02472359]
[1729449502882,0.23502691,68662.0,68661.0,1.002]
[1729449503115,0.23502691,68662.0,68661.0,1.02672507]
[1729449504066,0.169468,68662.0,68661.0,1.02672507]
[1729449505023,0.23502867,68662.0,68661.0,1.02672507]
[1729449505224,0.23502903,68662.0,68661.0,1.02672507]
[1729449505740,0.169468,68662.0,68661.0,1.002]
[1729449505959,0.169468,68662.0,68661.0,1.0267183]
[1729449509515,0.169468,68662.0,68661.0,1.02671477]
[1729449511544,0.169468,68662.0,68661.0,0.02671477]
[1729449512689,0.23503162,68662.0,68661.0,0.0457267]
[1729449512910,0.169468,68662.0,68661.0,0.01150539]
[1729449513154,0.169468,68662.0,68661.0,0.02671452]
[1729449513888,0.23503146,68662.0,68661.0,0.02671452]
[1729449514302,0.17338109,68662.0,68661.0,0.02671452]
[1729449514558,0.23894408,68662.0,68661.0,0.02671452]
[1729449514792,0.23503099,68662.0,68661.0,0.02671452]
[1729449515033,0.17338109,68662.0,68661.0,0.02671452]
[1729449515250,0.23894484,68662.0,68661.0,0.02671452]
[1729449515504,0.23503175,68662.0,68661.0,0.02671452]
[1729449515724,0.23894484,68662.0,68661.0,0.02671452]
[1729449516614,0.23894484,68662.0,68661.0,0.02671535]
[1729449520329,0.23894484,68662.0,68661.0,0.002]
[1729449520353,0.23894484,68662.0,68661.0,0.02671387]
[1729449522538,0.23894253,68662.0,68661.0,0.02671387]
[1729449523705,0.23894253,68662.0,68661.0,0.04572373]
[1729449526044,0.23894253,68662.0,68661.0,0.02671293]
[1729449526260,0.23894253,68662.0,68661.0,0.04572443]
[1729449527208,0.23894253,68662.0,68661.0,0.04572581]
[1729449527444,0.23894269,68662.0,68661.0,0.04572581]
[1729449528818,0.23894277,68662.0,68661.0,0.04572581]
[1729449530004,0.23894277,68662.0,68661.0,0.0267141]
[1729449530472,0.23894277,68662.0,68661.0,0.04572639]
[1729449534423,0.23894277,68662.0,68661.0,0.04572347]
[1729449537806,0.23894277,68662.0,68661.0,0.002]
[1729449538027,0.23894277,68662.0,68661.0,0.04571611]
[1729449541006,0.23894277,68662.0,68661.0,0.04570588]
[1729449545243,0.17338109,68662.0,68661.0,0.04570588]
[1729449545477,0.23894369,68662.0,68661.0,0.04570588]
[1729449545703,0.2350306,68662.0,68661.0,0.04570588]
[1729449545956,0.23879787,68662.0,68661.0,0.04570588]
[1729449547333,0.23879787,68662.0,68661.0,0.002]
[1729449547579,0.23879787,68662.0,68661.0,0.04571057]
[1729449548518,0.23879787,68662.0,68661.0,0.04571043]
[1729449549638,0.23879787,68662.0,68661.0,0.04570937]
[1729449550089,0.23879797,68662.0,68661.0,0.04570937]
[1729449553161,0.2350307,68662.0,68661.0,0.04570937]
[1729449554541,0.2350307,68662.0,68661.0,0.04571896]
[1729449554763,0.23503276,68662.0,68661.0,0.04571896]
[1729449556876,0.146468,68662.0,68661.0,0.04571896]
[1729449557119,0.21203276,68662.0,68661.0,0.04571896]
[1729449557351,0.1901765,68662.0,68661.0,0.04571896]
[1729449557819,0.19394377,68662.0,68661.0,0.04571896]
[1729449558041,0.19394377,68662.0,68661.0,0.04571029]
[1729449558263,0.15023527,68662.0,68661.0,0.04571029]
[1729449559260,0.15023527,68662.0,68661.0,0.22401029]
[1729449559493,0.1939425,68662.0,68661.0,0.22401029]
[1729449559715,0.15023527,68662.0,68661.0,0.22401029]
[1729449559948,0.1939425,68662.0,68661.0,0.22401029]
[1729449560419,0.15023527,68662.0,68661.0,0.14381029]
[1729449563890,0.15018705,68662.0,68661.0,0.14381029]
[1729449568801,0.15018705,68662.0,68661.0,0.14377188]
[1729449569256,0.146468,68662.0,68661.0,0.14377188]
[1729449569484,0.15009703,68662.0,68661.0,0.14377188]
[1729449569714,0.146468,68662.0,68661.0,0.14377188]
[1729449575492,0.146468,68662.0,68661.0,0.04567188]
[1729449577864,0.19016179,68662.0,68661.0,0.04567188]
[1729449578057,0.19361071,68662.0,68661.0,0.04567188]
[1729449578287,0.14991692,68662.0,68661.0,0.04567188]
[1729449578507,0.19361071,68662.0,68661.0,0.04567188]
[1729449578945,0.14991692,68662.0,68661.0,0.04567188]
[1729449579419,0.14991692,68662.0,68661.0,0.04567675]
[1729449579864,0.19360949,68662.0,68661.0,0.04567675]
[1729449580088,0.14991692,68662.0,68661.0,0.04567675]
[1729449581424,0.19360949,68662.0,68661.0,0.04567675]
[1729449582767,0.19360949,68662.0,68661.0,0.04567802]
[1729449586430,0.19360949,68662.0,68661.0,0.04568269]
[1729449589057,0.19361277,68662.0,68661.0,0.04568269]
[1729449589944,0.19361277,68662.0,68661.0,0.02668953]
[1729449590182,0.19361277,68662.0,68661.0,0.04568233]
[1729449597375,0.19361277,68662.0,68661.0,0.002]
[1729449597632,0.19361277,68662.0,68661.0,0.04568278]
[1729449598821,0.19361787,68662.0,68661.0,0.04568278]
[1729449600173,0.14991692,68662.0,68661.0,0.04568278]
[1729449600861,0.19361961,68662.0,68661.0,0.0304899]
[1729449601083,0.14991692,68662.0,68661.0,0.04568435]
[1729449601307,0.19361963,68662.0,68661.0,0.04568435]
[1729449601536,0.14991692,68662.0,68661.0,0.04568435]
[1729449601977,0.19362004,68662.0,68661.0,0.04568435]
[1729449602219,0.19362013,68662.0,68661.0,0.04568435]
[1729449602446,0.14991692,68662.0,68661.0,0.04568435]
[1729449604055,0.19362087,68662.0,68661.0,0.04568435]
[1729449604728,0.19362075,68662.0,68661.0,0.04568435]
[1729449605681,0.14991692,68662.0,68661.0,0.04568435]
[1729449607508,0.19362131,68662.0,68661.0,0.04568435]
[1729449608212,0.14991692,68662.0,68661.0,0.04568435]
[1729449610957,0.14991692,68662.0,68661.0,0.05062468]
[1729449611409,0.14991692,68662.0,68661.0,0.04568624]
[1729449611656,0.193622,68662.0,68661.0,0.04568624]
[1729449611857,0.193622,68662.0,68661.0,0.05062468]
[1729449612297,0.193622,68662.0,68661.0,0.04568624]
[1729449612554,0.193622,68662.0,68661.0,0.05062468]
[1729449613008,0.193622,68662.0,68661.0,0.04568624]
[1729449613235,0.193622,68662.0,68661.0,0.05062468]
[1729449615107,0.19362254,68662.0,68661.0,0.06152871]
[1729449616274,0.14991692,68662.0,68661.0,0.06152871]
[1729449621496,0.14991692,68662.0,68661.0,0.06151561]
[1729449621709,0.14991692,68662.0,68661.0,0.06151573]
[1729449623028,0.14991692,68662.0,68661.0,0.05951573]
[1729449623704,0.14991692,68662.0,68661.0,0.06151573]
[1729449625081,0.14991692,68662.0,68661.0,0.06151499]
[1729449626416,0.14991692,68662.0,68661.0,0.05657655]
[1729449626636,0.14991692,68662.0,68661.0,0.06151499]
[1729449628423,0.14991692,68662.0,68661.0,0.00693844]
[1729449628642,0.14991692,68662.0,68661.0,0.06152116]
[1729449628869,0.19362732,68662.0,68661.0,0.06152116]
[1729449631833,0.19464427,68662.0,68661.0,0.06152116]
[1729449632282,0.19464427,68662.0,68661.0,0.05952116]
[1729449632505,0.19464427,68662.0,68661.0,0.06151725]
[1729449635651,0.19464427,68662.0,68661.0,0.05061038]
[1729449635895,0.19464427,68662.0,68661.0,0.15461401]
[1729449636535,0.19464193,68662.0,68661.0,0.15461401]
[1729449639226,0.19464193,68662.0,68661.0,0.10003844]
[1729449639438,0.19464193,68662.0,68661.0,0.15461038]
[1729449641752,0.15093387,68662.0,68661.0,0.15461038]
[1729449641943,0.19464128,68662.0,68661.0,0.15461038]
[1729449642857,0.19464128,68662.0,68661.0,0.14370775]
[1729449643129,0.15093387,68662.0,68661.0,0.15461094]
[1729449643302,0.19464118,68662.0,68661.0,0.15461094]
[1729449643519,0.15093387,68662.0,68661.0,0.15461094]
[1729449644445,0.19464116,68662.0,68661.0,0.15461094]
[1729449646455,0.19464116,68662.0,68661.0,0.14370807]
[1729449646682,0.19464116,68662.0,68661.0,0.15461126]
[1729449649757,0.19464116,68662.0,68661.0,0.11094163]
[1729449649968,0.19464116,68662.0,68661.0,0.1546108]
[1729449651176,0.19464126,68662.0,68661.0,0.1546108]
[1729449653349,0.19464126,68662.0,68661.0,0.10003844]
[1729449653568,0.19464126,68662.0,68661.0,0.15460893]
[1729449656059,0.19464175,68662.0,68661.0,0.15460902]
[1729449656283,0.19464175,68662.0,68661.0,0.15260902]
[1729449656489,0.19464175,68662.0,68661.0,0.15460902]
[1729449660398,0.19464175,68662.0,68661.0,0.15460954]
[1729449660612,0.19464222,68662.0,68661.0,0.15460954]
[1729449662916,0.19464222,68662.0,68661.0,0.14370684]
[1729449663142,0.19464222,68662.0,68661.0,0.15460962]
[1729449666501,0.19464222,68662.0,68661.0,0.15461094]
[1729449668988,0.19464384,68662.0,68661.0,0.15461094]
[1729449669214,0.15093387,68662.0,68661.0,0.15461094]
[1729449669865,0.15093387,68662.0,68661.0,0.11094122]
[1729449670086,0.15093387,68662.0,68661.0,0.15461091]
[1729449670316,0.1946441,68662.0,68661.0,0.15461091]
[1729449670721,0.15093387,68662.0,68661.0,0.15461091]
[1729449671658,0.19464425,68662.0,68661.0,0.15461091]
[1729449672315,0.15093387,68662.0,68661.0,0.15461091]
[1729449672532,0.19464431,68662.0,68661.0,0.15461091]
[1729449672767,0.15093387,68662.0,68661.0,0.15461091]
[1729449672985,0.19464428,68662.0,68661.0,0.14967247]
[1729449673439,0.15093387,68662.0,68661.0,0.14967247]
[1729449674898,0.19464455,68662.0,68661.0,0.14967247]
[1729449675359,0.19464455,68662.0,68661.0,0.23167247]
[1729449678955,0.19464378,68662.0,68661.0,0.23167247]
[1729449680571,0.19464378,68662.0,68661.0,0.23167539]
[1729449682356,0.19464378,68662.0,68661.0,0.14967539]
[1729449682831,0.15093387,68662.0,68661.0,0.14767539]
[1729449683302,0.19464396,68662.0,68661.0,0.14767539]
[1729449684215,0.19464396,68662.0,68661.0,0.14767637]
[1729449684434,0.19464396,68662.0,68661.0,0.14967637]
[1729449684866,0.15093387,68662.0,68661.0,0.14967637]
[1729449685506,0.194644,68662.0,68661.0,0.14967637]
[1729449686574,0.15093387,68662.0,68661.0,0.14967637]
[1729449687327,0.19464412,68662.0,68661.0,0.14967637]
[1729449687745,0.19464412,68662.0,68661.0,0.0951]
[1729449687955,0.19464412,68662.0,68661.0,0.13877222]
[1729449688166,0.19464412,68662.0,68661.0,0.14967601]
[1729449688429,0.19264412,68662.0,68661.0,0.14967601]
[1729449688645,0.19264411,68662.0,68661.0,0.14967601]
[1729449688858,0.14893387,68662.0,68661.0,0.14967601]
[1729449689074,0.19264422,68662.0,68661.0,0.14967601]
[1729449690393,0.14893387,68662.0,68661.0,0.14967601]
[1729449690858,0.19264452,68662.0,68661.0,0.14967601]
[1729449691287,0.14893387,68662.0,68661.0,0.14967601]
[1729449691484,0.19264467,68662.0,68661.0,0.14967632]
[1729449692853,0.14893387,68662.0,68661.0,0.14967632]
[1729449695095,0.14893387,68662.0,68661.0,0.13877253]
[1729449695315,0.14893387,68662.0,68661.0,0.14967617]
[1729449695532,0.14893387,68662.0,68661.0,0.1605798]
[1729449696890,0.14893387,68662.0,68661.0,0.1622358]
[1729449698467,0.14893387,68662.0,68661.0,0.0691358]
[1729449698685,0.144468,68662.0,68661.0,0.0691358]
[1729449698908,0.14866826,68662.0,68661.0,0.08003866]
[1729449699132,0.14866826,68662.0,68661.0,0.06913503]
[1729449700507,0.14866826,68662.0,68661.0,0.06713503]
[1729449700935,0.14866826,68662.0,68661.0,0.05623139]
[1729449702237,0.14564,68662.0,68661.0,0.03724326]
[1729449706131,0.14564,68662.0,68661.0,0.001656]
[1729449706356,0.14564,68662.0,68661.0,0.03722573]
[1729449710155,0.14564,68662.0,68661.0,0.0372259]
[1729449712053,0.14564,68662.0,68661.0,0.05620144]
[1729449712257,0.15000181,68662.0,68661.0,0.05620144]
[1729449713788,0.15000181,68662.0,68661.0,0.001656]
[1729449713995,0.15000181,68662.0,68661.0,0.04529854]
[1729449714214,0.15000181,68662.0,68661.0,0.05620197]
[1729449719716,0.19370852,68662.0,68661.0,0.05620197]
[1729449720663,0.15000181,68662.0,68661.0,0.05620197]
[1729449720914,0.15000181,68662.0,68661.0,0.01255943]
[1729449721164,0.15000181,68662.0,68661.0,0.05620258]
[1729449721396,0.19370789,68662.0,68661.0,0.05620258]
[1729449721607,0.18934608,68662.0,68661.0,0.05620258]
[1729449721857,0.19352891,68662.0,68661.0,0.05820258]
[1729449722073,0.19352891,68662.0,68661.0,0.05620258]
[1729449724734,0.19352947,68662.0,68661.0,0.05620258]
[1729449727582,0.19352985,68662.0,68661.0,0.05620258]
[1729449727796,0.14982283,68662.0,68661.0,0.05620034]
[1729449730269,0.14982283,68662.0,68661.0,0.04529768]
[1729449731186,0.14982283,68662.0,68661.0,0.04529772]
[1729449731411,0.14982283,68662.0,68661.0,0.05620092]
[1729449731636,0.19353013,68662.0,68661.0,0.05620092]
[1729449732104,0.19353013,68662.0,68661.0,0.02773882]
[1729449732333,0.19353013,68662.0,68661.0,0.0562002]
[1729449734284,0.14982283,68662.0,68661.0,0.0562002]
[1729449734505,0.19353011,68662.0,68661.0,0.0582002]
[1729449734975,0.14982283,68662.0,68661.0,0.0582002]
[1729449735209,0.1935301,68662.0,68661.0,0.0582002]
[1729449735658,0.14982283,68662.0,68661.0,0.0582002]
[1729449735874,0.19352998,68662.0,68661.0,0.0582002]
[1729449736095,0.19352998,68662.0,68661.0,0.04729653]
[1729449736311,0.19352998,68662.0,68661.0,0.05819926]
[1729449740783,0.19353013,68662.0,68661.0,0.05819926]
[1729449743484,0.19353013,68662.0,68661.0,0.003656]
[1729449743698,0.19353013,68662.0,68661.0,0.0472968]
[1729449743916,0.19353013,68662.0,68661.0,0.05819962]
[1729449745697,0.19353003,68662.0,68661.0,0.05819962]
[1729449747217,0.19353003,68662.0,68661.0,0.01455882]
[1729449747465,0.19353003,68662.0,68661.0,0.04729787]
[1729449747680,0.19353003,68662.0,68661.0,0.05820096]
[1729449749600,0.19353003,68662.0,68661.0,0.14840096]
[1729449750252,0.19353003,68662.0,68661.0,0.13749787]
[1729449750467,0.1935302,68662.0,68661.0,0.1484013]
[1729449751112,0.1935302,68662.0,68661.0,0.1483917]
[1729449754616,0.1935302,68662.0,68661.0,0.13748858]
[1729449754833,0.1935302,68662.0,68661.0,0.14839207]
[1729449756343,0.14982283,68662.0,68661.0,0.14839207]
[1729449757213,0.1935302,68662.0,68661.0,0.14839207]
[1729449757692,0.14982283,68662.0,68661.0,0.14839207]
[1729449758152,0.14982283,68662.0,68661.0,0.093856]
[1729449758364,0.14982283,68662.0,68661.0,0.14838946]
[1729449758803,0.1935302,68662.0,68661.0,0.14838946]
[1729449759020,0.14982283,68662.0,68661.0,0.14838946]
[1729449759231,0.1935302,68662.0,68661.0,0.14838946]
[1729449765166,0.1935302,68662.0,68661.0,0.10475893]
[1729449765167,0.19353012,68662.0,68661.0,0.10475893]
[1729449765384,0.19353012,68662.0,68661.0,0.14838883]
[1729449768621,0.19353012,68662.0,68661.0,0.14838876]
[1729449769085,0.14982283,68662.0,68661.0,0.14838876]
[1729449769727,0.19352985,68662.0,68661.0,0.14838876]
[1729449770421,0.14982283,68662.0,68661.0,0.14838876]
[1729449772211,0.14982283,68662.0,68661.0,0.14833687]
[1729449775703,0.14982283,68662.0,68661.0,0.14833592]
[1729449775951,0.36828905,68662.0,68661.0,0.05613592]
[1729449776221,0.33098565,68662.0,68661.0,0.04523306]
[1729449776467,0.33098565,68662.0,68661.0,0.02628602]
[1729449777919,0.23838565,68662.0,68661.0,0.02628602]
[1729449779326,0.23838565,68662.0,68661.0,0.02628315]
[1729449781229,0.23838565,68662.0,68661.0,0.03122159]
[1729449781471,0.23419132,68662.0,68661.0,0.03122159]
[1729449781747,0.23419132,68662.0,68661.0,0.01606517]
[1729449781985,0.23419132,68662.0,68661.0,0.03121884]
[1729449782979,0.23814632,68662.0,68661.0,0.03121884]
[1729449783673,0.23814632,68662.0,68661.0,0.03121713]
[1729449785084,0.23814632,68662.0,68661.0,0.00659444]
[1729449785316,0.23814632,68662.0,68661.0,0.03121655]
[1729449786011,0.17259904,68662.0,68661.0,0.03121655]
[1729449786234,0.21629406,68662.0,68661.0,0.03121655]
[1729449786983,0.21629329,68662.0,68661.0,0.03121655]
[1729449787478,0.21629329,68662.0,68661.0,0.05015606]
[1729449789139,0.21629329,68662.0,68661.0,0.04521762]
[1729449789469,0.21629329,68662.0,68661.0,0.05015606]
[1729449789947,0.21629329,68662.0,68661.0,0.04521762]
[1729449790194,0.21629329,68662.0,68661.0,0.05015606]
[1729449795631,0.21629265,68662.0,68661.0,0.05015606]
[1729449797297,0.17259904,68662.0,68661.0,0.05015606]
[1729449797530,0.17259904,68662.0,68661.0,0.03121655]
[1729449802382,0.21629243,68662.0,68661.0,0.05015531]
[1729449802849,0.21629243,68662.0,68661.0,0.04521687]
[1729449803081,0.21629243,68662.0,68661.0,0.05015531]
[1729449803781,0.23813946,68662.0,68661.0,0.03121655]
[1729449804493,0.33389885,68662.0,68661.0,0.03121655]
[1729449804749,0.23813975,68662.0,68661.0,0.03121655]
[1729449806019,0.17259904,68662.0,68661.0,0.03121655]
[1729449806645,0.33521446,68662.0,68661.0,0.03121655]
[1729449806859,0.40075517,68662.0,68661.0,0.03121655]
[1729449807068,0.40075456,68662.0,68661.0,0.03121655]
[1729449807717,0.25179541,68662.0,68661.0,0.03121655]
[1729449807902,0.18625531,68662.0,68661.0,0.03121655]
[1729449808619,0.17259904,68662.0,68661.0,0.03121655]